[Event "Chessity Nationale Pupillendag 2018 - Groep G"]
[Site "Meppel, Netherlands"]
[Date "2018.06.23"]
[Round "6.3"]
[White "Jorritsma, Eli Alia"]
[Black "Smets, Cas"]
[Result "1-0"]
[TimeControl "15 min + 10 sec"]
[WhiteElo "636"]
[BlackElo "428"]

1. e4 {[%clk 00:15:18]} e5 {[%clk 00:15:19]} {[%emt 00:00:01]} 2. Bc4 {[%clk
00:15:26]} {[%emt 00:00:02]} Nf6 {[%clk 00:15:27]} {[%emt 00:00:02]} 3. Nc3
{[%clk 00:15:34]} {[%emt 00:00:02]} Bb4 {[%clk 00:15:35]} {[%emt 00:00:03]} 4.
d3 {[%clk 00:15:36]} {[%emt 00:00:08]} Nc6 {[%clk 00:15:40]} {[%emt 00:00:06]}
5. Bg5 {[%clk 00:15:40]} {[%emt 00:00:04]} Nd4 {[%clk 00:15:46]} {[%emt
00:00:03]} 6. Nf3 {[%clk 00:15:24]} {[%emt 00:00:37]} c5 {[%clk 00:16:02]}
{[%emt 00:00:05]} 7. O-O {[%clk 00:15:23]} {[%emt 00:00:11]} Kf8 {[%clk
00:15:55]} {[%emt 00:00:17]} 8. Nd5 {[%clk 00:15:27]} {[%emt 00:00:06]} Nxd5
{[%clk 00:15:55]} {[%emt 00:00:10]} 9. Bxd8 {[%clk 00:15:33]} {[%emt 00:00:04]}
d6 {[%clk 00:15:56]} {[%emt 00:00:08]} 10. Bxd5 {[%clk 00:15:36]} {[%emt
00:00:09]} Bg4 {[%clk 00:16:04]} 11. Bg5 {[%clk 00:15:21]} {[%emt 00:00:24]} f6
{[%clk 00:15:55]} {[%emt 00:00:20]} 12. Be3 {[%clk 00:15:14]} {[%emt 00:00:15]}
Ba5 {[%clk 00:15:35]} {[%emt 00:00:31]} 13. Bxd4 {[%clk 00:15:19]} {[%emt
00:00:05]} exd4 {[%clk 00:15:43]} {[%emt 00:00:01]} 14. Bxb7 {[%clk 00:15:25]}
{[%emt 00:00:05]} Rb8 {[%clk 00:15:53]} 15. Bd5 {[%clk 00:15:25]} {[%emt
00:00:10]} Rxb2 {[%clk 00:16:00]} {[%emt 00:00:03]} 16. Rb1 {[%clk 00:15:20]}
{[%emt 00:00:16]} Rxa2 {[%clk 00:16:04]} {[%emt 00:00:05]} 17. Bxa2 {[%clk
00:15:26]} {[%emt 00:00:04]} Ke8 {[%clk 00:16:00]} {[%emt 00:00:11]} 18. Rb8+
{[%clk 00:15:33]} {[%emt 00:00:05]} Kd7 {[%clk 00:16:08]} 19. h3 {[%clk
00:15:22]} {[%emt 00:00:24]} Bxf3 {[%clk 00:16:14]} {[%emt 00:00:03]} 20. Qxf3
{[%clk 00:15:28]} {[%emt 00:00:04]} Rxb8 {[%clk 00:16:23]} 21. Qg4+ {[%clk
00:15:29]} {[%emt 00:00:10]} Kc7 {[%clk 00:16:31]} {[%emt 00:00:02]} 22. Qxg7+
{[%clk 00:15:24]} {[%emt 00:00:15]} Kc8 {[%clk 00:16:38]} {[%emt 00:00:02]} 23.
Be6+ {[%clk 00:15:26]} {[%emt 00:00:08]} Kd8 {[%clk 00:16:47]} {[%emt
00:00:02]} 24. Qd7# {[%emt 00:00:03]} 1-0

[Event "Chessity Nationale Pupillendag 2018 - Groep G"]
[Site "Meppel, Netherlands"]
[Date "2018.06.23"]
[Round "6.4"]
[White "Sterk, Ralf"]
[Black "Vijver, Jonathan"]
[Result "0-1"]
[TimeControl "15 min + 10 sec"]
[WhiteElo "849"]
[BlackElo "588"]

1. e4 {[%clk 00:15:18]} {[%emt 00:47:37]} e5 {[%clk 00:15:19]} {[%emt
00:00:02]} 2. Nf3 {[%clk 00:15:26]} Nc6 {[%clk 00:15:27]} {[%emt 00:00:03]} 3.
Bc4 {[%clk 00:15:35]} Nf6 {[%clk 00:15:34]} {[%emt 00:00:04]} 4. Ng5 {[%clk
00:15:43]} d5 {[%clk 00:15:42]} {[%emt 00:00:04]} 5. exd5 {[%clk 00:15:51]}
{[%emt 00:00:02]} Na5 {[%emt 00:00:12]} 6. d3 Nxc4 {[%clk 00:15:59]} 7. dxc4
{[%clk 00:15:52]} c6 {[%emt 00:00:07]} 8. Nc3 {[%emt 00:00:10]} cxd5 {[%clk
00:15:59]} {[%emt 00:00:09]} 9. Nxd5 {[%emt 00:00:16]} Nxd5 {[%clk 00:16:03]}
10. cxd5 {[%emt 00:00:04]} h6 {[%clk 00:16:08]} {[%emt 00:00:02]} 11. Nf3
{[%clk 00:16:09]} {[%emt 00:00:04]} Bg4 {[%emt 00:00:03]} 12. h3 {[%clk
00:16:17]} Bh5 {[%clk 00:16:25]} 13. Be3 {[%emt 00:00:12]} e4 {[%emt 00:00:02]}
14. Qd4 {[%clk 00:15:58]} {[%emt 00:00:12]} exf3 {[%clk 00:16:32]} {[%emt
00:00:06]} 15. gxf3 {[%clk 00:16:04]} {[%emt 00:00:04]} Bxf3 {[%clk 00:16:40]}
{[%emt 00:00:03]} 16. Rg1 {[%clk 00:16:08]} {[%emt 00:00:04]} Bxd5 {[%clk
00:16:41]} {[%emt 00:00:10]} 17. Qe5+ {[%clk 00:16:09]} {[%emt 00:00:07]} Be6
{[%clk 00:16:43]} {[%emt 00:00:08]} 18. f4 {[%clk 00:16:13]} {[%emt 00:00:05]}
Bd6 {[%clk 00:16:43]} {[%emt 00:00:12]} 19. Qb5+ {[%clk 00:16:13]} {[%emt
00:00:09]} Bd7 {[%clk 00:16:50]} {[%emt 00:00:04]} 20. Qe2 {[%clk 00:16:22]}
{[%emt 00:00:01]} Bxh3 {[%clk 00:16:54]} {[%emt 00:00:06]} 21. O-O-O {[%clk
00:16:21]} {[%emt 00:00:11]} Qc7 {[%clk 00:16:42]} {[%emt 00:00:22]} 22. Bb6+
{[%clk 00:16:18]} {[%emt 00:00:13]} Qe7 {[%clk 00:16:46]} {[%emt 00:00:07]} 23.
Qb5+ {[%clk 00:16:18]} {[%emt 00:00:09]} Bd7 {[%clk 00:16:52]} {[%emt
00:00:05]} 24. Qd3 {[%clk 00:16:10]} {[%emt 00:00:17]} Bxf4+ {[%clk 00:16:56]}
{[%emt 00:00:07]} 25. Kb1 {[%clk 00:16:12]} {[%emt 00:00:07]} axb6 {[%clk
00:16:57]} {[%emt 00:00:09]} 26. Rge1 {[%clk 00:16:17]} {[%emt 00:00:05]} Be6
{[%clk 00:16:57]} {[%emt 00:00:10]} 27. Qb5+ {[%clk 00:16:14]} {[%emt
00:00:13]} Kf8 {[%clk 00:16:56]} {[%emt 00:00:12]} 28. Qxb6 {[%clk 00:16:06]}
{[%emt 00:00:18]} Bxa2+ {[%clk 00:16:54]} {[%emt 00:00:12]} 29. Ka1 {[%clk
00:16:14]} {[%emt 00:00:03]} Be6+ {[%clk 00:16:59]} {[%emt 00:00:05]} 30. Kb1
{[%clk 00:16:20]} {[%emt 00:00:04]} Bc7 {[%clk 00:16:53]} {[%emt 00:00:15]} 31.
Qe3 {[%clk 00:16:14]} {[%emt 00:00:15]} g6 {[%clk 00:16:19]} {[%emt 00:00:44]}
32. Qd4 {[%clk 00:16:16]} {[%emt 00:00:08]} Kg8 {[%clk 00:16:10]} {[%emt
00:00:19]} 33. Qc3 {[%clk 00:15:25]} {[%emt 00:01:02]} Ba5 {[%clk 00:16:11]}
{[%emt 00:00:09]} 34. Rxe6 {[%clk 00:15:06]} {[%emt 00:00:29]} fxe6 {[%clk
00:16:07]} {[%emt 00:00:13]} 35. Qg3 {[%clk 00:14:46]} {[%emt 00:00:29]} Qg5
{[%clk 00:16:07]} {[%emt 00:00:10]} 36. Qb3 {[%clk 00:14:49]} {[%emt 00:00:07]}
Rh7 {[%clk 00:15:47]} {[%emt 00:00:30]} 37. Qxe6+ {[%clk 00:14:51]} {[%emt
00:00:09]} Kh8 {[%clk 00:15:49]} {[%emt 00:00:07]} 38. Qe4 {[%clk 00:14:27]}
{[%emt 00:00:33]} Rd8 {[%clk 00:15:50]} {[%emt 00:00:09]} 39. Rf1 {[%clk
00:13:39]} {[%emt 00:00:59]} Re7 {[%clk 00:15:20]} {[%emt 00:00:39]} 40. Qh1
{[%clk 00:12:46]} {[%emt 00:01:01]} Re1+ {[%clk 00:15:21]} {[%emt 00:00:12]} 41.
Rxe1 {[%clk 00:12:52]} {[%emt 00:00:04]} Bxe1 {[%clk 00:15:28]} {[%emt
00:00:03]} 42. Qxe1 {[%clk 00:13:00]} {[%emt 00:00:03]} Qh5 {[%clk 00:15:29]}
{[%emt 00:00:08]} 43. Ka2 {[%clk 00:12:44]} {[%emt 00:00:26]} Qd5+ {[%clk
00:15:34]} {[%emt 00:00:04]} 44. Ka3 {[%clk 00:12:45]} {[%emt 00:00:22]} Ra8+
{[%clk 00:15:44]} {[%emt 00:00:06]} 45. Kb4 {[%clk 00:12:50]} {[%emt 00:00:06]}
Qa5+ {[%clk 00:15:53]} {[%emt 00:00:01]} 0-1

[Event "Chessity Nationale Pupillendag 2018 - Groep G"]
[Site "Meppel, Netherlands"]
[Date "2018.06.23"]
[Round "7.1"]
[White "Aubel, Daan"]
[Black "Koorevaar, Sarah-Joy"]
[Result "1/2-1/2"]
[TimeControl "15 min + 10 sec"]
[WhiteElo "833"]
[BlackElo "533"]

1. e4 {[%clk 00:15:19]} e5 {[%clk 00:15:19]} {[%emt 00:00:01]} 2. Nf3 {[%clk
00:15:27]} {[%emt 00:00:02]} Nc6 {[%clk 00:15:28]} 3. Bb5 {[%clk 00:15:36]}
{[%emt 00:00:02]} Bd6 {[%clk 00:15:28]} {[%emt 00:00:10]} 4. Nc3 {[%clk
00:15:41]} {[%emt 00:00:05]} Nf6 {[%clk 00:15:36]} {[%emt 00:00:02]} 5. d3
{[%clk 00:15:46]} {[%emt 00:00:04]} O-O {[%clk 00:15:26]} {[%emt 00:00:20]} 6.
Bg5 {[%clk 00:15:54]} {[%emt 00:00:03]} Re8 {[%clk 00:15:32]} {[%emt 00:00:04]}
7. O-O {[%clk 00:15:59]} {[%emt 00:00:05]} Bc5 {[%clk 00:15:34]} {[%emt
00:00:08]} 8. Bxc6 {[%clk 00:16:00]} {[%emt 00:00:09]} dxc6 {[%clk 00:15:41]}
{[%emt 00:00:03]} 9. a3 {[%clk 00:16:02]} {[%emt 00:00:09]} Bg4 {[%clk
00:15:48]} {[%emt 00:00:02]} 10. h3 {[%clk 00:16:07]} {[%emt 00:00:05]} Be6
{[%clk 00:15:45]} {[%emt 00:00:12]} 11. Re1 {[%clk 00:15:53]} {[%emt 00:00:25]}
Be7 {[%clk 00:15:46]} {[%emt 00:00:09]} 12. Nxe5 {[%clk 00:15:59]} {[%emt
00:00:04]} Nd7 {[%clk 00:15:30]} {[%emt 00:00:24]} 13. Bxe7 {[%clk 00:16:03]}
{[%emt 00:00:08]} Qxe7 {[%clk 00:15:28]} {[%emt 00:00:12]} 14. Nxd7 {[%clk
00:16:07]} {[%emt 00:00:06]} Qxd7 {[%clk 00:15:36]} {[%emt 00:00:04]} 15. Qf3
{[%clk 00:16:10]} {[%emt 00:00:06]} Qd6 {[%clk 00:15:21]} {[%emt 00:00:24]} 16.
Rad1 {[%clk 00:16:05]} {[%emt 00:00:15]} Rad8 {[%clk 00:15:27]} {[%emt
00:00:05]} 17. d4 {[%clk 00:16:10]} {[%emt 00:00:06]} Bc4 {[%clk 00:14:34]}
{[%emt 00:01:02]} 18. e5 {[%clk 00:16:11]} {[%emt 00:00:09]} Qg6 {[%clk
00:13:52]} {[%emt 00:00:52]} 19. b3 {[%clk 00:15:48]} {[%emt 00:00:34]} Be6
{[%clk 00:13:22]} {[%emt 00:00:39]} 20. Na4 {[%clk 00:15:28]} {[%emt 00:00:31]}
Bd5 {[%clk 00:13:19]} {[%emt 00:00:13]} 21. Qg3 {[%clk 00:15:26]} {[%emt
00:00:12]} Qxc2 {[%clk 00:13:12]} {[%emt 00:00:16]} 22. Nc5 {[%clk 00:15:17]}
{[%emt 00:00:19]} b6 {[%clk 00:12:40]} {[%emt 00:00:43]} 23. Rc1 {[%clk
00:15:11]} {[%emt 00:00:15]} Qb2 {[%clk 00:12:27]} {[%emt 00:00:21]} 24. Rb1
{[%clk 00:15:14]} {[%emt 00:00:10]} Qxa3 {[%clk 00:12:32]} {[%emt 00:00:04]} 25.
Na4 {[%clk 00:15:14]} {[%emt 00:00:10]} Qb4 {[%clk 00:12:20]} {[%emt 00:00:22]}
26. Qc3 {[%clk 00:15:12]} {[%emt 00:00:12]} Qe7 {[%clk 00:11:58]} {[%emt
00:00:29]} 27. Qd3 {[%clk 00:15:04]} {[%emt 00:00:22]} Qh4 {[%clk 00:11:47]}
{[%emt 00:00:21]} 28. Nc3 {[%clk 00:15:04]} {[%emt 00:00:09]} Be6 {[%clk
00:11:21]} {[%emt 00:00:35]} 29. Qf3 {[%clk 00:14:44]} {[%emt 00:00:32]} Qg5
{[%clk 00:10:53]} {[%emt 00:00:36]} 30. Ne4 {[%clk 00:14:33]} {[%emt 00:00:22]}
Qg6 {[%clk 00:10:16]} {[%emt 00:00:46]} 31. Nc3 {[%clk 00:14:08]} {[%emt
00:00:35]} 1/2-1/2

[Event "Chessity Nationale Pupillendag 2018 - Groep G"]
[Site "Meppel, Netherlands"]
[Date "2018.06.23"]
[Round "7.2"]
[White "Verwer, Oscar"]
[Black "Jorritsma, Eli Alia"]
[Result "1-0"]
[TimeControl "15 min + 10 sec"]
[WhiteElo "833"]
[BlackElo "636"]

1. e4 {[%clk 00:15:19]} e5 {[%clk 00:15:19]} {[%emt 00:00:01]} 2. Nf3 {[%clk
00:15:28]} {[%emt 00:00:02]} Nc6 {[%clk 00:15:27]} {[%emt 00:00:02]} 3. d4
{[%clk 00:15:36]} {[%emt 00:00:02]} d6 {[%clk 00:15:17]} {[%emt 00:00:20]} 4.
dxe5 {[%clk 00:15:39]} {[%emt 00:00:07]} dxe5 {[%clk 00:15:24]} {[%emt
00:00:03]} 5. Qxd8+ {[%clk 00:15:45]} {[%emt 00:00:03]} Nxd8 {[%clk 00:15:30]}
{[%emt 00:00:04]} 6. Nxe5 {[%clk 00:15:54]} Nc6 {[%clk 00:15:24]} {[%emt
00:00:18]} 7. Nxc6 {[%clk 00:16:02]} {[%emt 00:00:02]} bxc6 {[%clk 00:15:31]}
{[%emt 00:00:03]} 8. Bc4 {[%clk 00:16:09]} {[%emt 00:00:02]} Nf6 {[%clk
00:15:38]} {[%emt 00:00:04]} 9. Nc3 {[%clk 00:16:17]} {[%emt 00:00:02]} Bc5
{[%clk 00:15:42]} {[%emt 00:00:04]} 10. O-O {[%clk 00:16:24]} {[%emt 00:00:04]}
O-O {[%clk 00:15:47]} {[%emt 00:00:05]} 11. Bg5 {[%clk 00:16:25]} {[%emt
00:00:09]} Be7 {[%clk 00:15:50]} {[%emt 00:00:07]} 12. e5 {[%clk 00:16:26]}
{[%emt 00:00:11]} Be6 {[%clk 00:14:53]} {[%emt 00:01:06]} 13. Bxe6 {[%clk
00:16:27]} {[%emt 00:00:08]} fxe6 {[%clk 00:14:59]} {[%emt 00:00:03]} 14. exf6
{[%clk 00:16:36]} {[%emt 00:00:03]} Bxf6 {[%clk 00:15:04]} {[%emt 00:00:03]} 15.
Bxf6 {[%clk 00:16:41]} {[%emt 00:00:06]} Rxf6 {[%clk 00:15:12]} {[%emt
00:00:02]} 16. Rfe1 {[%clk 00:16:49]} {[%emt 00:00:02]} Rg6 {[%clk 00:15:17]}
{[%emt 00:00:07]} 17. Rad1 {[%clk 00:16:52]} {[%emt 00:00:06]} Rf8 {[%clk
00:15:12]} {[%emt 00:00:13]} 18. Rd7 {[%clk 00:16:53]} {[%emt 00:00:10]} Rf5
{[%clk 00:14:55]} {[%emt 00:00:26]} 19. Rxc7 {[%clk 00:16:59]} {[%emt
00:00:06]} Rfg5 {[%clk 00:14:54]} {[%emt 00:00:10]} 20. g3 {[%clk 00:17:05]}
{[%emt 00:00:05]} Rf5 {[%clk 00:14:51]} {[%emt 00:00:11]} 21. Rxc6 {[%clk
00:17:08]} {[%emt 00:00:07]} Rgf6 {[%clk 00:14:48]} {[%emt 00:00:13]} 22. f4
{[%clk 00:17:17]} {[%emt 00:00:02]} Rh6 {[%clk 00:14:28]} {[%emt 00:00:29]} 23.
Rcxe6 {[%clk 00:16:52]} {[%emt 00:00:36]} Rh3 {[%clk 00:14:13]} {[%emt
00:00:20]} 24. R6e5 {[%clk 00:16:52]} {[%emt 00:00:15]} Rf6 {[%clk 00:14:11]}
{[%emt 00:00:10]} 25. Ne4 {[%clk 00:16:45]} {[%emt 00:00:18]} Rfh6 {[%clk
00:14:00]} {[%emt 00:00:17]} 26. Re2 {[%clk 00:16:44]} {[%emt 00:00:16]} Rb6
{[%clk 00:12:56]} {[%emt 00:01:08]} 27. Ng5 {[%clk 00:16:49]} {[%emt 00:00:10]}
Rhh6 {[%clk 00:12:28]} {[%emt 00:00:36]} 28. Re8+ {[%clk 00:16:53]} {[%emt
00:00:07]} 1-0

[Event "Chessity Nationale Pupillendag 2018 - Groep G"]
[Site "Meppel, Netherlands"]
[Date "2018.06.23"]
[Round "7.3"]
[White "Vijver, Jonathan"]
[Black "Van Rijn, Vincent"]
[Result "1-0"]
[TimeControl "15 min + 10 sec"]
[WhiteElo "588"]
[BlackElo "699"]

1. e4 {[%clk 00:15:26]} {[%emt 00:00:01]} d5 {[%clk 00:15:30]} 2. exd5 {[%clk
00:15:26]} Qxd5 {[%clk 00:15:30]} 3. Nc3 {[%emt 00:00:05]} Qe6+ 4. Be2 {[%emt
00:00:04]} Nc6 5. Nf3 {[%clk 00:15:48]} {[%emt 00:00:02]} Nf6 {[%clk 00:15:57]}
{[%emt 00:00:02]} 6. d4 {[%clk 00:15:55]} {[%emt 00:00:03]} g6 {[%clk
00:16:01]} {[%emt 00:00:07]} 7. d5 {[%clk 00:16:04]} Nxd5 {[%clk 00:15:44]}
{[%emt 00:00:27]} 8. Nxd5 {[%clk 00:16:12]} Qd6 {[%clk 00:15:38]} {[%emt
00:00:17]} 9. Bf4 {[%clk 00:16:17]} {[%emt 00:00:05]} e5 {[%clk 00:15:38]}
{[%emt 00:00:11]} 10. Bg5 {[%clk 00:16:10]} {[%emt 00:00:16]} Bg7 {[%clk
00:15:33]} {[%emt 00:00:17]} 11. O-O {[%clk 00:15:32]} {[%emt 00:00:47]} e4
{[%clk 00:15:33]} {[%emt 00:00:09]} 12. Bf4 {[%clk 00:15:13]} {[%emt 00:00:29]}
Be5 {[%clk 00:15:11]} {[%emt 00:00:33]} 13. Bxe5 {[%emt 00:00:04]} Nxe5 14.
Nxe5 {[%clk 00:15:16]} {[%emt 00:00:02]} Qxe5 {[%clk 00:15:18]} {[%emt
00:00:01]} 15. Re1 {[%clk 00:15:08]} {[%emt 00:00:20]} c6 {[%clk 00:15:09]}
{[%emt 00:00:20]} 16. Nc3 {[%clk 00:15:15]} {[%emt 00:00:02]} Qg5 {[%clk
00:15:11]} {[%emt 00:00:09]} 17. Bd3 {[%clk 00:15:17]} {[%emt 00:00:07]} O-O
{[%clk 00:14:51]} {[%emt 00:00:30]} 18. Bxe4 {[%clk 00:15:20]} {[%emt
00:00:07]} Bh3 {[%clk 00:14:51]} {[%emt 00:00:09]} 19. Qf3 {[%clk 00:15:18]}
{[%emt 00:00:12]} Bg4 {[%clk 00:14:41]} {[%emt 00:00:17]} 20. Qg3 {[%clk
00:14:45]} {[%emt 00:00:45]} Rae8 {[%clk 00:14:08]} {[%emt 00:00:44]} 21. h3
{[%clk 00:14:52]} {[%emt 00:00:04]} Qh5 {[%clk 00:13:01]} {[%emt 00:01:18]} 22.
hxg4 {[%clk 00:14:50]} {[%emt 00:00:11]} Qh6 {[%clk 00:13:03]} {[%emt
00:00:17]} 23. g5 {[%clk 00:15:08]} {[%emt 00:00:13]} Qh5 {[%clk 00:13:20]}
{[%emt 00:00:02]} 24. Bf3 {[%clk 00:15:14]} {[%emt 00:00:04]} Qxf3 {[%clk
00:13:18]} {[%emt 00:00:11]} 25. Qxf3 {[%clk 00:15:21]} {[%emt 00:00:03]} Rxe1+
{[%clk 00:13:21]} {[%emt 00:00:07]} 26. Rxe1 {[%clk 00:15:30]} {[%emt
00:00:01]} Rd8 {[%clk 00:13:24]} {[%emt 00:00:07]} 27. Re7 {[%clk 00:15:29]}
{[%emt 00:00:11]} Rf8 {[%clk 00:13:14]} {[%emt 00:00:17]} 28. Ne4 {[%clk
00:15:37]} {[%emt 00:00:06]} Kg7 {[%clk 00:13:19]} {[%emt 00:00:05]} 29. Qf6+
{[%clk 00:15:45]} {[%emt 00:00:03]} Kg8 {[%clk 00:13:27]} 30. Nd6 {[%clk
00:15:48]} {[%emt 00:00:06]} Rd8 {[%clk 00:13:30]} {[%emt 00:00:07]} 31. Qxf7+
{[%clk 00:15:57]} {[%emt 00:00:03]} Kh8 {[%clk 00:13:35]} {[%emt 00:00:03]} 32.
Qxh7 {[%emt 00:00:18]} 1-0